fUST/lending_fUST_20260528
["ID","MTS","AMOUNT","RATE_DAILY","PERIOD"]
[423211248,1779935442000,-501.24492162,8.219e-05,2]
[423211244,1779935442000,-500.0,8.219e-05,2]
[423211245,1779935442000,-696.97,8.219e-05,2]
[423211246,1779935442000,-500.0,8.219e-05,2]
[423211247,1779935442000,-500.0,8.219e-05,2]
[423211251,1779935442000,-622.74,8.219e-05,2]
[423211280,1779935442000,-500.0,8.219e-05,2]
[423211282,1779935442000,-500.45450201,8.219e-05,2]
[423211285,1779935442000,-515.36,8.219e-05,2]
[423211323,1779935442000,-500.60591388,8.219e-05,2]
[423211324,1779935442000,-501.13330581,8.219e-05,2]
[423211317,1779935442000,-500.0,8.219e-05,2]
[423211316,1779935442000,-500.0,8.219e-05,2]
[423211315,1779935442000,-500.0,8.219e-05,2]
[423211319,1779935442000,-500.0,8.219e-05,2]
[423211318,1779935442000,-500.90143777,8.219e-05,2]
[423211326,1779935442000,-500.0,8.219e-05,2]
[423211329,1779935442000,-500.0,8.219e-05,2]
[423211327,1779935442000,-500.0,8.219e-05,2]
[423211332,1779935442000,-500.0,8.219e-05,2]
[423211334,1779935442000,-500.0,8.219e-05,2]
[423211328,1779935442000,-500.0,8.219e-05,2]
[423211341,1779935442000,-174.11140613,8.219e-05,2]
[423211336,1779935442000,-500.0,8.219e-05,2]
[423211342,1779935442000,-184.72659074,8.219e-05,2]
[423211339,1779935442000,-500.0,8.219e-05,2]
[423211338,1779935442000,-500.0,8.219e-05,2]
[423211337,1779935442000,-965.56,8.219e-05,2]
[423211343,1779935442000,-500.0,8.219e-05,2]
[423211340,1779935442000,-176.91593072,8.219e-05,2]
[423211345,1779935442000,-500.0,8.219e-05,2]
[423211344,1779935442000,-500.0,8.219e-05,2]
[423211348,1779935442000,-501.18786156,8.219e-05,2]
[423211347,1779935442000,-500.0,8.219e-05,2]
[423211346,1779935442000,-500.0,8.219e-05,2]
[423211349,1779935442000,-500.0,8.219e-05,2]
[423211350,1779935442000,-500.0,8.219e-05,2]
[423211283,1779935442000,-500.0,8.219e-05,2]
[423211325,1779935442000,-500.0,8.219e-05,2]
[423211322,1779935442000,-500.0,8.219e-05,2]
[423211351,1779935442000,-7338.56,8.219e-05,2]
[423211314,1779935442000,-500.0,8.219e-05,2]
[423211321,1779935442000,-500.0,8.219e-05,2]
[423211286,1779935442000,-500.0,8.219e-05,2]
[423211287,1779935442000,-500.0,8.219e-05,2]
[423211288,1779935442000,-500.0,8.219e-05,2]
[423211290,1779935442000,-500.0,8.219e-05,2]
[423211292,1779935442000,-500.0,8.219e-05,2]
[423211291,1779935442000,-500.5357329,8.219e-05,2]
[423211293,1779935442000,-947.56,8.219e-05,2]
[423211294,1779935442000,-500.22215451,8.219e-05,2]
[423211297,1779935442000,-500.37881113,8.219e-05,2]
[423211296,1779935442000,-500.0,8.219e-05,2]
[423211298,1779935442000,-623.70768043,8.219e-05,2]
[423211295,1779935442000,-500.0,8.219e-05,2]
[423211299,1779935442000,-500.53341659,8.219e-05,2]
[423211289,1779935442000,-500.0,8.219e-05,2]
[423211302,1779935442000,-500.0,8.219e-05,2]
[423211300,1779935442000,-500.0,8.219e-05,2]
[423211312,1779935442000,-1227.38,8.219e-05,2]
[423211311,1779935442000,-500.0,8.219e-05,2]
[423211313,1779935442000,-500.35115407,8.219e-05,2]
[423211301,1779935442000,-500.0,8.219e-05,2]
[423211303,1779935442000,-500.0,8.219e-05,2]
[423211310,1779935442000,-500.0,8.219e-05,2]
[423211320,1779935442000,-500.0,8.219e-05,2]
[423211309,1779935442000,-962.7,8.219e-05,2]
[423211308,1779935442000,-500.0,8.219e-05,2]
[423211307,1779935442000,-505.91115447,8.219e-05,2]
[423211306,1779935442000,-500.0,8.219e-05,2]
[423211305,1779935442000,-500.0,8.219e-05,2]
[423211304,1779935442000,-500.0,8.219e-05,2]
[423211395,1779935443000,-500.0,8.219e-05,2]
[423211411,1779935443000,-502.71377118,8.493e-05,2]
[423211401,1779935443000,-500.0,8.219e-05,2]
[423211398,1779935443000,-500.0,8.219e-05,2]
[423211393,1779935443000,-500.0,8.219e-05,2]
[423211387,1779935443000,-542.63100994,8.219e-05,2]
[423211391,1779935443000,-500.0,8.219e-05,2]
[423211394,1779935443000,-500.0,8.219e-05,2]
[423211392,1779935443000,-500.0,8.219e-05,2]
[423211388,1779935443000,-500.0,8.219e-05,2]
[423211390,1779935443000,-500.0,8.219e-05,2]
[423211403,1779935443000,-500.22660401,8.219e-05,2]
[423211385,1779935443000,-500.0,8.219e-05,2]
[423211402,1779935443000,-500.28126543,8.219e-05,2]
[423211416,1779935443000,-500.0,8.493e-05,2]
[423211413,1779935443000,-500.4430705,8.493e-05,2]
[423211405,1779935443000,-500.0,8.219e-05,2]
[423211406,1779935443000,-600.0,8.275e-05,2]
[423211404,1779935443000,-500.69759813,8.219e-05,2]
[423211407,1779935443000,-176.91593069,8.402e-05,2]
[423211408,1779935443000,-692.71022786,8.492e-05,2]
[423211409,1779935443000,-1186.9134,8.493e-05,2]
[423211410,1779935443000,-501.94280075,8.493e-05,2]
[423211415,1779935443000,-500.42280185,8.493e-05,2]
[423211425,1779935443000,-500.0,8.493e-05,2]
[423211429,1779935443000,-234.74988337,8.493e-05,2]
[423211426,1779935443000,-500.0,8.493e-05,2]
[423211428,1779935443000,-500.72462293,8.493e-05,2]
[423211386,1779935443000,-500.0,8.219e-05,2]
[423211400,1779935443000,-500.0,8.219e-05,2]
[423211384,1779935443000,-500.0,8.219e-05,2]
[423211368,1779935443000,-500.0,8.219e-05,2]
[423211377,1779935443000,-500.0,8.219e-05,2]
[423211427,1779935443000,-501.0891325,8.493e-05,2]
[423211355,1779935443000,-500.0,8.219e-05,2]
[423211357,1779935443000,-500.0,8.219e-05,2]
[423211356,1779935443000,-500.0,8.219e-05,2]
[423211353,1779935443000,-500.0,8.219e-05,2]
[423211354,1779935443000,-500.0,8.219e-05,2]
[423211352,1779935443000,-500.0,8.219e-05,2]
[423211358,1779935443000,-500.0,8.219e-05,2]
[423211369,1779935443000,-419.34848434,8.219e-05,2]
[423211359,1779935443000,-1478.36,8.219e-05,2]
[423211370,1779935443000,-500.0,8.219e-05,2]
[423211360,1779935443000,-549.71,8.219e-05,2]
[423211363,1779935443000,-500.0,8.219e-05,2]
[423211364,1779935443000,-500.0,8.219e-05,2]
[423211361,1779935443000,-500.0,8.219e-05,2]
[423211367,1779935443000,-500.0,8.219e-05,2]
[423211362,1779935443000,-500.0,8.219e-05,2]
[423211366,1779935443000,-500.0,8.219e-05,2]
[423211365,1779935443000,-500.0,8.219e-05,2]
[423211381,1779935443000,-500.0,8.219e-05,2]
[423211383,1779935443000,-500.0,8.219e-05,2]
[423211382,1779935443000,-500.0,8.219e-05,2]
[423211373,1779935443000,-501.46222507,8.219e-05,2]
[423211371,1779935443000,-500.518524,8.219e-05,2]
[423211375,1779935443000,-502.6424227,8.219e-05,2]
[423211374,1779935443000,-500.0,8.219e-05,2]
[423211378,1779935443000,-209.04,8.219e-05,2]
[423211379,1779935443000,-500.64461641,8.219e-05,2]
[423211380,1779935443000,-500.0,8.219e-05,2]
[423211376,1779935443000,-500.0,8.219e-05,2]
[423211419,1779935443000,-502.83020178,8.493e-05,2]
[423211488,1779935443000,-501.27871863,8.493e-05,2]
[423211418,1779935443000,-503.35687487,8.493e-05,2]
[423211460,1779935443000,-500.0,8.493e-05,2]
[423211467,1779935443000,-500.54237897,8.493e-05,2]
[423211466,1779935443000,-500.0,8.493e-05,2]
[423211468,1779935443000,-500.50755703,8.493e-05,2]
[423211457,1779935443000,-500.0,8.493e-05,2]
[423211461,1779935443000,-501.26095609,8.493e-05,2]
[423211462,1779935443000,-639.91009301,8.493e-05,2]
[423211464,1779935443000,-500.47362068,8.493e-05,2]
[423211463,1779935443000,-500.0,8.493e-05,2]
[423211465,1779935443000,-500.0,8.493e-05,2]
[423211482,1779935443000,-527.4894581,8.493e-05,2]
[423211470,1779935443000,-500.0,8.493e-05,2]
[423211471,1779935443000,-500.0,8.493e-05,2]
[423211473,1779935443000,-508.38339088,8.493e-05,2]
[423211476,1779935443000,-500.0,8.493e-05,2]
[423211478,1779935443000,-500.0,8.493e-05,2]
[423211477,1779935443000,-500.0,8.493e-05,2]
[423211475,1779935443000,-504.11175842,8.493e-05,2]
[423211480,1779935443000,-500.0,8.493e-05,2]
[423211484,1779935443000,-500.0,8.493e-05,2]
[423211481,1779935443000,-500.21163113,8.493e-05,2]
[423211479,1779935443000,-581.52978652,8.493e-05,2]
[423211483,1779935443000,-501.44724951,8.493e-05,2]
[423211486,1779935443000,-575.4656802,8.493e-05,2]
[423211487,1779935443000,-500.50479475,8.493e-05,2]
[423211485,1779935443000,-500.72560497,8.493e-05,2]
[423211489,1779935443000,-500.0,8.493e-05,2]
[423211422,1779935443000,-500.0,8.493e-05,2]
[423211491,1779935443000,-500.91828229,8.493e-05,2]
[423211469,1779935443000,-500.46110085,8.493e-05,2]
[423211459,1779935443000,-500.0,8.493e-05,2]
[423211490,1779935443000,-502.39710445,8.493e-05,2]
[423211453,1779935443000,-501.75426516,8.493e-05,2]
[423211423,1779935443000,-500.74178242,8.493e-05,2]
[423211421,1779935443000,-501.88478548,8.493e-05,2]
[423211420,1779935443000,-502.033757,8.493e-05,2]
[423211424,1779935443000,-490.0,8.493e-05,2]
[423211431,1779935443000,-501.07203919,8.493e-05,2]
[423211440,1779935443000,-500.0,8.493e-05,2]
[423211441,1779935443000,-501.20106094,8.493e-05,2]
[423211435,1779935443000,-500.0,8.493e-05,2]
[423211458,1779935443000,-547.52643257,8.493e-05,2]
[423211430,1779935443000,-186.14130619,8.493e-05,2]
[423211433,1779935443000,-380.03322273,8.493e-05,2]
[423211438,1779935443000,-500.0,8.493e-05,2]
[423211434,1779935443000,-500.0,8.493e-05,2]
[423211436,1779935443000,-500.0,8.493e-05,2]
[423211439,1779935443000,-500.0,8.493e-05,2]
[423211432,1779935443000,-501.39046815,8.493e-05,2]
[423211442,1779935443000,-500.0,8.493e-05,2]
[423211454,1779935443000,-500.0,8.493e-05,2]
[423211437,1779935443000,-500.7096859,8.493e-05,2]
[423211456,1779935443000,-500.0,8.493e-05,2]
[423211452,1779935443000,-500.0,8.493e-05,2]
[423211455,1779935443000,-500.0,8.493e-05,2]
[423211448,1779935443000,-500.0,8.493e-05,2]
[423211451,1779935443000,-501.43057388,8.493e-05,2]
[423211449,1779935443000,-500.0,8.493e-05,2]
[423211446,1779935443000,-501.53677376,8.493e-05,2]
[423211445,1779935443000,-500.0,8.493e-05,2]
[423211450,1779935443000,-500.0,8.493e-05,2]
[423211447,1779935443000,-167.71960462,8.493e-05,2]
[423211443,1779935443000,-501.07860062,8.493e-05,2]
[423211444,1779935443000,-613.27606725,8.493e-05,2]
[423211534,1779935444000,-500.35829912,8.493e-05,2]
[423211543,1779935444000,-500.85559149,8.493e-05,2]
[423211533,1779935444000,-500.32596213,8.493e-05,2]
[423211541,1779935444000,-500.25900731,8.493e-05,2]
[423211524,1779935444000,-500.0,8.493e-05,2]
[423211522,1779935444000,-500.65255913,8.493e-05,2]
[423211525,1779935444000,-500.59283035,8.493e-05,2]
[423211528,1779935444000,-500.0,8.493e-05,2]
[423211523,1779935444000,-500.0,8.493e-05,2]
[423211529,1779935444000,-445.74038047,8.493e-05,2]
[423211526,1779935444000,-458.75184128,8.493e-05,2]
[423211530,1779935444000,-500.0,8.493e-05,2]
[423211542,1779935444000,-362.17548523,8.493e-05,2]
[423211555,1779935444000,-575.99870113,8.493e-05,2]
[423211545,1779935444000,-501.30480761,8.493e-05,2]
[423211544,1779935444000,-500.33977144,8.493e-05,2]
[423211537,1779935444000,-199.5886521,8.493e-05,2]
[423211536,1779935444000,-500.90615019,8.493e-05,2]
[423211538,1779935444000,-500.0,8.493e-05,2]
[423211539,1779935444000,-500.58195449,8.493e-05,2]
[423211540,1779935444000,-500.0,8.493e-05,2]
[423211547,1779935444000,-573.44,8.493e-05,2]
[423211546,1779935444000,-500.49115145,8.493e-05,2]
[423211548,1779935444000,-500.0,8.493e-05,2]
[423211558,1779935444000,-500.0,8.493e-05,2]
[423211560,1779935444000,-546.85381814,8.493e-05,2]
[423211527,1779935444000,-500.0,8.493e-05,2]
[423211535,1779935444000,-500.6296141,8.493e-05,2]
[423211520,1779935444000,-500.0,8.493e-05,2]
[423211507,1779935444000,-500.52302768,8.493e-05,2]
[423211531,1779935444000,-501.01977851,8.493e-05,2]
[423211559,1779935444000,-500.0,8.493e-05,2]
[423211497,1779935444000,-502.04515309,8.493e-05,2]
[423211496,1779935444000,-313.17695423,8.493e-05,2]
[423211493,1779935444000,-501.15991206,8.493e-05,2]
[423211492,1779935444000,-502.30909093,8.493e-05,2]
[423211494,1779935444000,-500.0,8.493e-05,2]
[423211495,1779935444000,-500.67096914,8.493e-05,2]
[423211500,1779935444000,-500.0,8.493e-05,2]
[423211498,1779935444000,-502.27713769,8.493e-05,2]
[423211499,1779935444000,-500.0,8.493e-05,2]
[423211502,1779935444000,-500.0,8.493e-05,2]
[423211501,1779935444000,-500.0,8.493e-05,2]
[423211504,1779935444000,-501.59529345,8.493e-05,2]
[423211532,1779935444000,-500.0,8.493e-05,2]
[423211503,1779935444000,-550.35465854,8.493e-05,2]
[423211519,1779935444000,-206.68005739,8.493e-05,2]
[423211517,1779935444000,-500.54116099,8.493e-05,2]
[423211518,1779935444000,-500.53400338,8.493e-05,2]
[423211509,1779935444000,-342.01162423,8.493e-05,2]
[423211511,1779935444000,-500.0,8.493e-05,2]
[423211510,1779935444000,-502.45648542,8.493e-05,2]
[423211512,1779935444000,-500.97527908,8.493e-05,2]
[423211514,1779935444000,-500.0,8.493e-05,2]
[423211516,1779935444000,-500.0,8.493e-05,2]
[423211508,1779935444000,-502.69176403,8.493e-05,2]
[423211515,1779935444000,-500.0,8.493e-05,2]
[423211513,1779935444000,-500.0,8.493e-05,2]
[423211521,1779935444000,-500.0,8.493e-05,2]
[423211506,1779935444000,-500.0,8.493e-05,2]
[423211553,1779935444000,-500.0,8.493e-05,2]
[423211505,1779935444000,-500.0,8.493e-05,2]
[423211557,1779935444000,-500.0,8.493e-05,2]
[423211591,1779935444000,-500.0,8.493e-05,2]
[423211594,1779935444000,-500.0,8.493e-05,2]
[423211592,1779935444000,-500.0,8.493e-05,2]
[423211601,1779935444000,-502.18386137,8.493e-05,2]
[423211590,1779935444000,-500.0,8.493e-05,2]
[423211598,1779935444000,-501.19247836,8.493e-05,2]
[423211597,1779935444000,-211.14022913,8.493e-05,2]
[423211600,1779935444000,-500.0,8.493e-05,2]
[423211599,1779935444000,-500.0,8.493e-05,2]
[423211595,1779935444000,-502.44848833,8.493e-05,2]
[423211596,1779935444000,-309.62180551,8.493e-05,2]
[423211603,1779935444000,-503.15279632,8.493e-05,2]
[423211613,1779935444000,-500.0,8.493e-05,2]
[423211593,1779935444000,-500.0,8.493e-05,2]
[423211602,1779935444000,-500.0,8.493e-05,2]
[423211604,1779935444000,-495.34268976,8.493e-05,2]
[423211609,1779935444000,-504.04995612,8.493e-05,2]
[423211608,1779935444000,-500.0,8.493e-05,2]
[423211610,1779935444000,-500.0,8.493e-05,2]
[423211615,1779935444000,-500.7217449,8.493e-05,2]
[423211607,1779935444000,-500.0,8.493e-05,2]
[423211612,1779935444000,-500.0,8.493e-05,2]
[423211606,1779935444000,-504.53435271,8.493e-05,2]
[423211611,1779935444000,-500.0,8.493e-05,2]
[423211614,1779935444000,-500.0,8.493e-05,2]
[423211616,1779935444000,-500.0,8.493e-05,2]
[423211617,1779935444000,-504.70525504,8.493e-05,2]
[423211556,1779935444000,-500.38151658,8.493e-05,2]
[423211605,1779935444000,-500.0,8.493e-05,2]
[423211589,1779935444000,-500.0,8.493e-05,2]
[423211618,1779935444000,-500.0,8.493e-05,2]
[423211581,1779935444000,-500.52027314,8.493e-05,2]
[423211550,1779935444000,-500.37628263,8.493e-05,2]
[423211551,1779935444000,-500.0,8.493e-05,2]
[423211554,1779935444000,-500.0,8.493e-05,2]
[423211562,1779935444000,-500.32890451,8.493e-05,2]
[423211574,1779935444000,-500.0,8.493e-05,2]
[423211561,1779935444000,-500.0,8.493e-05,2]
[423211563,1779935444000,-501.04255302,8.493e-05,2]
[423211572,1779935444000,-500.0,8.493e-05,2]
[423211584,1779935444000,-500.0,8.493e-05,2]
[423211566,1779935444000,-183.1144073,8.493e-05,2]
[423211570,1779935444000,-500.0,8.493e-05,2]
[423211565,1779935444000,-500.88178795,8.493e-05,2]
[423211567,1779935444000,-500.0,8.493e-05,2]
[423211568,1779935444000,-500.0,8.493e-05,2]
[423211573,1779935444000,-500.0,8.493e-05,2]
[423211569,1779935444000,-501.57128687,8.493e-05,2]
[423211585,1779935444000,-500.0,8.493e-05,2]
[423211564,1779935444000,-500.0,8.493e-05,2]
[423211582,1779935444000,-500.0,8.493e-05,2]
[423211579,1779935444000,-500.0,8.493e-05,2]
[423211583,1779935444000,-500.0,8.493e-05,2]
[423211580,1779935444000,-501.64421482,8.493e-05,2]
[423211578,1779935444000,-500.0,8.493e-05,2]
[423211587,1779935444000,-500.0,8.493e-05,2]
[423211575,1779935444000,-500.75275145,8.493e-05,2]
[423211576,1779935444000,-500.0,8.493e-05,2]
[423211588,1779935444000,-500.0,8.493e-05,2]
[423211586,1779935444000,-500.0,8.493e-05,2]
[423211571,1779935444000,-500.0,8.493e-05,2]
[423211577,1779935444000,-501.87087957,8.493e-05,2]
[423211664,1779935445000,-500.0,8.493e-05,2]
[423211662,1779935445000,-500.0,8.493e-05,2]
[423211659,1779935445000,-500.0,8.493e-05,2]
[423211660,1779935445000,-500.0,8.493e-05,2]
[423211656,1779935445000,-500.0,8.493e-05,2]
[423211652,1779935445000,-715.95,8.493e-05,2]
[423211661,1779935445000,-500.0,8.493e-05,2]
[423211658,1779935445000,-500.0,8.493e-05,2]
[423211653,1779935445000,-500.0,8.493e-05,2]
[423211654,1779935445000,-274.57667675,8.493e-05,2]
[423211650,1779935445000,-622.74,8.493e-05,2]
[423211663,1779935445000,-500.0,8.493e-05,2]
[423211657,1779935445000,-500.0,8.493e-05,2]
[423211678,1779935445000,-500.0,8.493e-05,2]
[423211665,1779935445000,-500.0,8.493e-05,2]
[423211666,1779935445000,-500.0,8.493e-05,2]
[423211669,1779935445000,-500.0,8.493e-05,2]
[423211668,1779935445000,-500.83248929,8.493e-05,2]
[423211672,1779935445000,-500.0,8.493e-05,2]
[423211674,1779935445000,-500.0,8.493e-05,2]
[423211676,1779935445000,-500.0,8.493e-05,2]
[423211671,1779935445000,-515.36,8.493e-05,2]
[423211667,1779935445000,-500.0,8.493e-05,2]
[423211673,1779935445000,-500.0,8.493e-05,2]
[423211670,1779935445000,-500.0,8.493e-05,2]
[423211677,1779935445000,-947.56,8.493e-05,2]
[423211651,1779935445000,-502.33253212,8.493e-05,2]
[423211655,1779935445000,-502.37321147,8.493e-05,2]
[423211644,1779935445000,-501.6618017,8.493e-05,2]
[423211628,1779935445000,-500.0,8.493e-05,2]
[423211649,1779935445000,-500.0,8.493e-05,2]
[423211675,1779935445000,-500.0,8.493e-05,2]
[423211620,1779935445000,-500.56908023,8.493e-05,2]
[423211619,1779935445000,-500.0,8.493e-05,2]
[423211624,1779935445000,-500.0,8.493e-05,2]
[423211622,1779935445000,-500.0,8.493e-05,2]
[423211621,1779935445000,-500.0,8.493e-05,2]
[423211623,1779935445000,-500.0,8.493e-05,2]
[423211625,1779935445000,-500.0,8.493e-05,2]
[423211637,1779935445000,-542.04914718,8.493e-05,2]
[423211627,1779935445000,-500.0,8.493e-05,2]
[423211638,1779935445000,-500.0,8.493e-05,2]
[423211639,1779935445000,-500.0,8.493e-05,2]
[423211626,1779935445000,-500.0,8.493e-05,2]
[423211646,1779935445000,-500.0,8.493e-05,2]
[423211630,1779935445000,-500.0,8.493e-05,2]
[423211636,1779935445000,-500.0,8.493e-05,2]
[423211632,1779935445000,-500.0,8.493e-05,2]
[423211631,1779935445000,-500.0,8.493e-05,2]
[423211634,1779935445000,-500.0,8.493e-05,2]
[423211635,1779935445000,-500.0,8.493e-05,2]
[423211633,1779935445000,-500.0,8.493e-05,2]
[423211643,1779935445000,-500.0,8.493e-05,2]
[423211640,1779935445000,-500.0,8.493e-05,2]
[423211642,1779935445000,-500.0,8.493e-05,2]
[423211641,1779935445000,-500.0,8.493e-05,2]
[423211645,1779935445000,-696.97,8.493e-05,2]
[423211647,1779935445000,-500.0,8.493e-05,2]
[423211648,1779935445000,-500.0,8.493e-05,2]
[423211629,1779935445000,-500.0,8.493e-05,2]
[423211690,1779935445000,-1227.38,8.493e-05,2]
[423211680,1779935445000,-500.0,8.493e-05,2]
[423211681,1779935445000,-500.0,8.493e-05,2]
[423211713,1779935445000,-500.0,8.493e-05,2]
[423211712,1779935445000,-500.0,8.493e-05,2]
[423211716,1779935445000,-500.0,8.493e-05,2]
[423211718,1779935445000,-500.0,8.493e-05,2]
[423211717,1779935445000,-500.0,8.493e-05,2]
[423211722,1779935445000,-1478.36,8.493e-05,2]
[423211720,1779935445000,-500.0,8.493e-05,2]
[423211723,1779935445000,-549.71,8.493e-05,2]
[423211724,1779935445000,-500.0,8.493e-05,2]
[423211727,1779935445000,-500.0,8.493e-05,2]
[423211726,1779935445000,-500.0,8.493e-05,2]
[423211725,1779935445000,-500.0,8.493e-05,2]
[423211732,1779935445000,-500.0,8.493e-05,2]
[423211721,1779935445000,-500.0,8.493e-05,2]
[423211730,1779935445000,-500.0,8.493e-05,2]
[423211734,1779935445000,-500.0,8.493e-05,2]
[423211729,1779935445000,-500.0,8.493e-05,2]
[423211733,1779935445000,-500.0,8.493e-05,2]
[423211735,1779935445000,-500.0,8.493e-05,2]
[423211737,1779935445000,-500.0,8.493e-05,2]
[423211739,1779935445000,-500.0,8.493e-05,2]
[423211736,1779935445000,-500.62407722,8.493e-05,2]
[423211741,1779935445000,-500.0,8.493e-05,2]
[423211742,1779935445000,-501.4099639,8.493e-05,2]
[423211738,1779935445000,-501.50587663,8.493e-05,2]
[423211740,1779935445000,-502.63082277,8.493e-05,2]
[423211743,1779935445000,-500.0,8.493e-05,2]
[423211692,1779935445000,-500.0,8.493e-05,2]
[423211744,1779935445000,-500.55679885,8.493e-05,2]
[423211715,1779935445000,-7338.56,8.493e-05,2]
[423211714,1779935445000,-500.0,8.493e-05,2]
[423211728,1779935445000,-502.81715795,8.493e-05,2]
[423211708,1779935445000,-500.30930705,8.493e-05,2]
[423211719,1779935445000,-500.0,8.493e-05,2]
[423211682,1779935445000,-500.0,8.493e-05,2]
[423211693,1779935445000,-500.0,8.493e-05,2]
[423211679,1779935445000,-500.0,8.493e-05,2]
[423211684,1779935445000,-500.0,8.493e-05,2]
[423211689,1779935445000,-500.0,8.493e-05,2]
[423211685,1779935445000,-500.50041139,8.493e-05,2]
[423211683,1779935445000,-500.0,8.493e-05,2]
[423211686,1779935445000,-500.0,8.493e-05,2]
[423211688,1779935445000,-500.0,8.493e-05,2]
[423211687,1779935445000,-962.7,8.493e-05,2]
[423211694,1779935445000,-500.0,8.493e-05,2]
[423211696,1779935445000,-500.0,8.493e-05,2]
[423211697,1779935445000,-500.0,8.493e-05,2]
[423211691,1779935445000,-500.0,8.493e-05,2]
[423211699,1779935445000,-500.50879741,8.493e-05,2]
[423211698,1779935445000,-501.55935881,8.493e-05,2]
[423211711,1779935445000,-500.0,8.493e-05,2]
[423211710,1779935445000,-500.0,8.493e-05,2]
[423211709,1779935445000,-500.0,8.493e-05,2]
[423211702,1779935445000,-500.0,8.493e-05,2]
[423211707,1779935445000,-500.0,8.493e-05,2]
[423211704,1779935445000,-500.0,8.493e-05,2]
[423211705,1779935445000,-500.0,8.493e-05,2]
[423211700,1779935445000,-501.47440408,8.493e-05,2]
[423211701,1779935445000,-500.0,8.493e-05,2]
[423211706,1779935445000,-965.56,8.493e-05,2]
[423211695,1779935445000,-500.0,8.493e-05,2]
[423211703,1779935445000,-500.0,8.493e-05,2]
[423211786,1779935446000,-500.0,8.767e-05,2]
[423211790,1779935446000,-500.0,8.767e-05,2]
[423211787,1779935446000,-500.0,8.767e-05,2]
[423211791,1779935446000,-500.0,8.767e-05,2]
[423211796,1779935446000,-500.0,8.767e-05,2]
[423211794,1779935446000,-548.29676272,8.767e-05,2]
[423211798,1779935446000,-500.0,8.767e-05,2]
[423211785,1779935446000,-500.0,8.767e-05,2]
[423211784,1779935446000,-501.33597198,8.767e-05,2]
[423211782,1779935446000,-500.0,8.767e-05,2]
[423211788,1779935446000,-500.0,8.767e-05,2]
[423211773,1779935446000,-501.02823681,8.767e-05,2]
[423211793,1779935446000,-500.0,8.767e-05,2]
[423211789,1779935446000,-500.0,8.767e-05,2]
[423211808,1779935446000,-500.0,8.767e-05,2]
[423211801,1779935446000,-573.44,8.767e-05,2]
[423211810,1779935446000,-500.0,8.767e-05,2]
[423211814,1779935446000,-500.0,8.767e-05,2]
[423211811,1779935446000,-500.0,8.767e-05,2]
[423211813,1779935446000,-338.27197255,8.767e-05,2]
[423211806,1779935446000,-500.0,8.767e-05,2]
[423211805,1779935446000,-494.72097139,8.767e-05,2]
[423211820,1779935446000,-500.0,8.767e-05,2]
[423211812,1779935446000,-152.46540606,8.767e-05,2]
[423211800,1779935446000,-500.0,8.767e-05,2]
[423211818,1779935446000,-500.0,8.767e-05,2]
[423211817,1779935446000,-500.0,8.767e-05,2]
[423211815,1779935446000,-386.01433159,8.767e-05,2]
[423211779,1779935446000,-502.35110131,8.767e-05,2]
[423211803,1779935446000,-500.83080511,8.767e-05,2]
[423211774,1779935446000,-500.72512557,8.767e-05,2]
[423211748,1779935446000,-176.91593069,8.584e-05,2]
[423211776,1779935446000,-220.84118691,8.767e-05,2]
[423211819,1779935446000,-327.41316345,8.767e-05,2]
[423211745,1779935446000,-500.0,8.493e-05,2]
[423211746,1779935446000,-500.0,8.493e-05,2]
[423211747,1779935446000,-500.0,8.493e-05,2]
[423211749,1779935446000,-193.806612,8.623e-05,2]
[423211752,1779935446000,-6108.9443066,8.745e-05,2]
[423211751,1779935446000,-3458.4310363,8.745e-05,2]
[423211750,1779935446000,-759.4568299,8.745e-05,2]
[423211754,1779935446000,-1186.9134,8.767e-05,2]
[423211764,1779935446000,-268.79199172,8.767e-05,2]
[423211765,1779935446000,-500.0,8.767e-05,2]
[423211755,1779935446000,-500.0,8.767e-05,2]
[423211756,1779935446000,-500.0,8.767e-05,2]
[423211763,1779935446000,-500.0,8.767e-05,2]
[423211772,1779935446000,-504.99600671,8.767e-05,2]